bitfinex-derivatives/quotes_BTCF0:USTF0_20241110
["timestamp","ask_amount","ask_price","bid_price","bid_amount"]
[1731257255725,0.0306679,79827.0,79824.0,0.44519731]
[1731257256023,0.062581,79828.0,79826.0,0.062582]
[1731257256224,0.3608,79841.0,79824.0,0.44595731]
[1731257256530,0.06256,79855.0,79840.0,0.08439731]
[1731257256726,0.062562,79853.0,79848.0,0.062565]
[1731257256929,0.13165291,79852.0,79848.0,0.062565]
[1731257257232,0.06909091,79851.0,79843.0,0.062569]
[1731257257424,0.062569,79844.0,79841.0,0.033]
[1731257257629,0.0306603,79843.0,79841.0,0.033]
[1731257258133,0.06909479,79843.0,79841.0,0.033]
[1731257258324,0.0306603,79842.0,79841.0,0.095571]
[1731257258728,0.06909737,79844.0,79841.0,0.095571]
[1731257258934,0.06909695,79843.0,79841.0,0.095571]
[1731257259233,0.06909695,79842.0,79841.0,0.095571]
[1731257263429,0.03843334,79842.0,79841.0,0.095571]
[1731257263632,0.04490997,79844.0,79842.0,0.06257]
[1731257263834,0.06909647,79844.0,79842.0,0.04690654]
[1731257264045,0.11400644,79844.0,79842.0,0.04690654]
[1731257264230,0.06909647,79843.0,79842.0,0.04690654]
[1731257267242,0.03066277,79843.0,79842.0,0.04690654]
[1731257269146,0.06909552,79843.0,79842.0,0.04690654]
[1731257270741,0.03066277,79843.0,79842.0,0.04690654]
[1731257271545,0.06909542,79843.0,79842.0,0.04690654]
[1731257272244,0.03066277,79843.0,79842.0,0.04690654]
[1731257273339,0.03066179,79843.0,79842.0,0.06257]
[1731257273742,0.06909438,79843.0,79842.0,0.06257]
[1731257274236,0.04490727,79853.0,79842.0,0.76972]
[1731257274442,0.5236837,79863.0,79842.0,0.76972]
[1731257274443,0.1622437,79857.0,79856.0,0.062559]
[1731257274643,0.1622437,79857.0,79856.0,0.14695631]
[1731257274846,0.04490727,79861.0,79856.0,0.08439731]
[1731257275041,0.04490727,79864.0,79859.0,0.423357]
[1731257275246,0.10436,79866.0,79859.0,0.423357]
[1731257275247,0.04490727,79865.0,79859.0,0.423357]
[1731257275544,0.10436,79866.0,79859.0,0.423357]
[1731257276240,0.04490727,79867.0,79859.0,0.423357]
[1731257276434,0.10436,79867.0,79859.0,0.423357]
[1731257276842,0.10436,79866.0,79859.0,0.423357]
[1731257278140,0.10436,79866.0,79859.0,0.35446205]
[1731257279345,0.03842216,79865.0,79859.0,0.35446205]
[1731257279546,0.03842216,79864.0,79859.0,0.35446205]
[1731257279735,0.03842216,79863.0,79859.0,0.35446205]
[1731257279941,0.03842216,79862.0,79859.0,0.35446205]
[1731257280244,0.04030138,79860.0,79859.0,0.35446205]
[1731257281351,0.04030233,79860.0,79859.0,0.062557]
[1731257282547,0.07095749,79860.0,79859.0,0.062557]
[1731257284751,0.07095749,79860.0,79859.0,0.06225701]
[1731257286653,0.07095749,79860.0,79859.0,0.42305701]
[1731257288351,0.07095749,79860.0,79859.0,0.06205701]
[1731257295458,0.07095765,79860.0,79859.0,0.06205701]
[1731257298258,0.13351365,79860.0,79859.0,0.06205701]
[1731257298451,0.062558,79858.0,79854.0,0.06256]
[1731257298651,0.06907843,79857.0,79856.0,0.062559]
[1731257299054,0.06907843,79857.0,79856.0,0.05550147]
[1731257299968,0.13163643,79857.0,79856.0,0.05550147]
[1731257300654,0.13163643,79857.0,79851.0,0.06157405]
[1731257300655,0.062561,79854.0,79850.0,0.062563]
[1731257300860,0.16249361,79851.0,79850.0,0.062563]
[1731257301056,0.33589204,79851.0,79850.0,0.062563]
[1731257301262,0.062564,79850.0,79844.0,0.12407942]
[1731257301556,0.06907843,79849.0,79846.0,0.062566]
[1731257301758,0.06907843,79849.0,79847.0,0.062566]
[1731257302064,0.04489754,79850.0,79849.0,0.062564]
[1731257302261,0.06909185,79850.0,79849.0,0.062564]
[1731257303663,0.16258688,79850.0,79849.0,0.062564]
[1731257303866,0.23167873,79850.0,79849.0,0.062564]
[1731257304059,0.14878939,79850.0,79849.0,0.062564]
[1731257304563,0.14879862,79850.0,79840.0,0.062571]
[1731257304860,0.062572,79840.0,79835.0,0.062575]
[1731257305064,0.31070545,79846.0,79835.0,0.05488221]
[1731257305065,0.062573,79838.0,79835.0,0.05488221]
[1731257305261,0.10149185,79837.0,79835.0,0.05488221]
[1731257305465,0.06909185,79836.0,79835.0,0.05488221]
[1731257305654,0.06909185,79836.0,79830.0,0.00187911]
[1731257305855,0.062578,79832.0,79830.0,0.00187911]
[1731257306060,0.42989185,79831.0,79830.0,0.00187911]
[1731257306458,0.53421185,79831.0,79830.0,0.00187911]
[1731257306865,0.42989185,79831.0,79830.0,0.00187911]
[1731257307161,0.53421185,79831.0,79830.0,0.00187911]
[1731257307967,0.062582,79827.0,79822.0,0.062585]
[1731257308267,0.062582,79827.0,79821.0,0.08439731]
[1731257308268,0.06910262,79826.0,79821.0,0.08439731]
[1731257308462,0.46576,79831.0,79825.0,0.08439731]
[1731257308463,0.46512,79831.0,79825.0,0.08439731]
[1731257308764,0.06911206,79830.0,79825.0,0.08439731]
[1731257308962,0.17347206,79829.0,79825.0,0.08439731]
[1731257309159,0.17347206,79829.0,79826.0,0.062582]
[1731257309160,0.06911206,79828.0,79826.0,0.062582]
[1731257309355,0.3608,79831.0,79826.0,0.062582]
[1731257309356,0.06911206,79827.0,79826.0,0.062582]
[1731257309562,0.17347206,79827.0,79826.0,0.062582]
[1731257310352,0.17347206,79827.0,79826.0,0.423382]
[1731257310559,0.10436,79827.0,79826.0,0.423382]
[1731257311066,0.062575,79836.0,79826.0,0.3608]
[1731257311369,0.166935,79836.0,79832.0,0.062578]
[1731257311969,0.062579,79831.0,79826.0,0.48618579]
[1731257312162,0.062579,79831.0,79826.0,0.42360379]
[1731257312360,0.10436,79836.0,79830.0,0.19708278]
[1731257312867,0.166935,79836.0,79830.0,0.13450378]
[1731257313069,0.166935,79836.0,79831.0,0.062578]
[1731257313269,0.166935,79836.0,79830.0,0.13450378]
[1731257313967,0.166935,79836.0,79833.0,0.062577]
[1731257314267,0.062579,79831.0,79830.0,0.05010647]
[1731257314473,0.3608,79831.0,79820.0,0.062587]
[1731257314670,0.062586,79821.0,79819.0,0.3608]
[1731257314971,0.0348,79820.0,79808.0,0.3608]
[1731257315170,0.0348,79820.0,79808.0,0.42374166]
[1731257315369,0.0348,79820.0,79818.0,0.062589]
[1731257317071,0.10436,79822.0,79821.0,0.062586]
[1731257317275,0.17347389,79822.0,79821.0,0.062586]
[1731257319065,0.10436,79822.0,79821.0,0.062586]
[1731257320166,0.10436,79822.0,79821.0,0.11269812]
[1731257321469,0.0339,79829.0,79828.0,0.062581]
[1731257321763,0.13826,79829.0,79828.0,0.062581]
[1731257323165,0.36144,79830.0,79825.0,0.08439731]
[1731257323362,0.3608,79830.0,79829.0,0.06258]
[1731257323568,0.46512,79830.0,79829.0,0.06258]
[1731257324075,0.10432,79830.0,79829.0,0.06258]
[1731257324978,0.062578,79832.0,79825.0,0.08439731]
[1731257325174,0.13498857,79831.0,79830.0,0.062579]
[1731257326179,0.17342966,79831.0,79830.0,0.062579]
[1731257326879,0.21834777,79831.0,79830.0,0.062579]
[1731257333175,0.06910966,79831.0,79830.0,0.13795972]
[1731257333370,0.06910944,79831.0,79830.0,0.14697631]
[1731257333681,0.06910346,79831.0,79830.0,0.14697631]
[1731257333872,0.16258688,79841.0,79840.0,0.062572]
[1731257334073,0.16258688,79841.0,79840.0,0.14696931]
[1731257334270,0.10619941,79847.0,79846.0,0.062567]
[1731257336174,0.00187941,79847.0,79841.0,0.0342]
[1731257336484,0.062568,79845.0,79841.0,0.0342]
[1731257336679,0.062568,79845.0,79843.0,0.062569]
[1731257337987,0.062572,79840.0,79837.0,0.062574]
[1731257338180,0.062572,79840.0,79838.0,0.062573]
[1731257338386,0.062568,79845.0,79841.0,0.06257]
[1731257338775,0.1010041,79844.0,79841.0,0.06257]
[1731257338979,0.0384351,79843.0,79841.0,0.06257]
[1731257339280,0.1010041,79843.0,79841.0,0.06257]
[1731257339486,0.0384351,79842.0,79841.0,0.06257]
[1731257340082,0.1010051,79842.0,79841.0,0.06257]
[1731257340683,0.062573,79838.0,79835.0,0.062575]
[1731257340989,0.0384351,79837.0,79836.0,0.062575]
[1731257341381,0.0384351,79837.0,79831.0,0.062579]
[1731257341382,0.062577,79833.0,79831.0,0.062579]
[1731257341686,0.0384351,79837.0,79831.0,0.062579]
[1731257341687,0.10101618,79832.0,79831.0,0.062579]
[1731257341989,0.1316823,79832.0,79831.0,0.062579]
[1731257343383,0.06258,79830.0,79826.0,0.062582]
[1731257343583,0.0691043,79829.0,79826.0,0.062582]
[1731257344184,0.0691043,79829.0,79822.0,0.3608]
[1731257344386,0.062582,79827.0,79822.0,0.3608]
[1731257344587,0.0691043,79826.0,79822.0,0.423385]
[1731257345589,0.11402172,79826.0,79822.0,0.423385]
[1731257346384,0.062585,79823.0,79822.0,0.3608]
[1731257346599,0.10102318,79823.0,79822.0,0.3608]
[1731257346786,0.1316893,79823.0,79822.0,0.3608]
[1731257347285,0.1316893,79823.0,79821.0,0.05011212]
[1731257347286,0.0691043,79823.0,79821.0,0.05011212]
[1731257347489,0.44519731,79825.0,79821.0,0.05011212]
[1731257347490,0.1388043,79822.0,79821.0,0.05011212]
[1731257347889,0.062593,79813.0,79812.0,0.00187941]
[1731257348084,0.56615118,79813.0,79812.0,0.00187941]
[1731257348288,0.5968173,79813.0,79812.0,0.00187941]
[1731257349393,0.64174432,79813.0,79812.0,0.00187941]
[1731257349582,0.64174432,79813.0,79805.0,0.062598]
[1731257349583,0.64174432,79813.0,79808.0,0.062597]
[1731257349778,0.11403132,79812.0,79809.0,0.3608]
[1731257350193,0.11403132,79812.0,79808.0,0.062597]
[1731257350194,0.11403132,79812.0,79810.0,0.3608]
[1731257350592,0.1316993,79811.0,79805.0,0.08439731]
[1731257350907,0.062599,79805.0,79799.0,0.08439731]
[1731257351087,0.062601,79803.0,79797.0,0.062605]
[1731257351284,0.0691043,79802.0,79797.0,0.062605]
[1731257351687,0.0691043,79802.0,79796.0,0.06216701]
[1731257351889,0.1317063,79801.0,79791.0,0.062609]
[1731257352092,0.0691043,79800.0,79791.0,0.062609]
[1731257352287,0.0691043,79800.0,79794.0,0.08439731]
[1731257352486,0.04492702,79801.0,79791.0,0.062609]
[1731257352487,0.0691043,79799.0,79791.0,0.062609]
[1731257352798,0.062605,79797.0,79791.0,0.062609]
[1731257352985,0.0691043,79796.0,79791.0,0.062609]
[1731257353186,0.0691043,79796.0,79788.0,0.08439731]
[1731257353187,0.062607,79795.0,79788.0,0.08439731]
[1731257353384,0.1317123,79794.0,79787.0,0.062613]
[1731257353590,0.04492702,79801.0,79791.0,0.06261]
[1731257353591,0.0691043,79793.0,79791.0,0.06261]
[1731257353792,0.1733843,79792.0,79791.0,0.06261]
[1731257355599,0.1733843,79792.0,79791.0,0.14700731]
[1731257356487,0.10428,79792.0,79791.0,0.14700731]
[1731257356888,0.10428,79792.0,79791.0,0.06261]
[1731257357396,0.10428,79792.0,79791.0,0.14700731]
[1731257359296,0.10428,79792.0,79786.0,0.3608]
[1731257359496,0.10428,79792.0,79786.0,0.423413]
[1731257359694,0.10428,79792.0,79786.0,0.424173]
[1731257360001,0.10428,79792.0,79787.0,0.062613]
[1731257360189,0.166889,79792.0,79787.0,0.062613]
[1731257360390,0.10428,79792.0,79787.0,0.062613]
[1731257360595,0.062611,79791.0,79787.0,0.062613]
[1731257360796,0.096311,79791.0,79784.0,0.00187989]
[1731257360997,0.0338,79790.0,79784.0,0.00187989]
[1731257361803,0.0338,79790.0,79787.0,0.062612]
[1731257363092,0.0338,79790.0,79784.0,0.00187989]
[1731257363499,0.10294541,79790.0,79784.0,0.00187989]
[1731257364393,0.1488818,79790.0,79784.0,0.00187989]
[1731257364597,0.44048449,79790.0,79784.0,0.00187989]
[1731257365100,0.54480449,79790.0,79784.0,0.00187989]
[1731257365299,0.54480468,79790.0,79784.0,0.00187989]
[1731257365599,0.54480468,79790.0,79784.0,0.06449489]
[1731257365796,0.58326556,79790.0,79784.0,0.06449489]
[1731257366194,0.58326556,79790.0,79784.0,0.08439731]
[1731257366195,0.20726556,79790.0,79784.0,0.08439731]
[1731257366395,0.16880468,79790.0,79784.0,0.08439731]
[1731257366802,0.06448468,79790.0,79784.0,0.08439731]
[1731257367004,0.16880468,79790.0,79784.0,0.08439731]
[1731257367594,0.16880468,79790.0,79779.0,0.3608]
[1731257367595,0.20726422,79790.0,79779.0,0.423419]
[1731257367895,0.20726422,79790.0,79779.0,0.062619]
[1731257368095,0.20726422,79790.0,79789.0,7.823e-05]
[1731257369302,0.20731605,79790.0,79789.0,7.823e-05]
[1731257370712,0.58331605,79790.0,79789.0,7.823e-05]
[1731257371306,0.062631,79764.0,79761.0,0.062633]
[1731257372203,0.00013006,79763.0,79761.0,0.062633]
[1731257372401,0.00013006,79763.0,79761.0,0.14703031]
[1731257373400,0.00013006,79763.0,79762.0,0.0991]
[1731257377306,0.00013006,79763.0,79762.0,0.4599]
[1731257380812,0.00013006,79763.0,79762.0,0.3608]
[1731257381711,0.03081895,79763.0,79762.0,0.3608]
[1731257382408,0.03082027,79763.0,79762.0,0.3608]
[1731257382710,0.03082027,79763.0,79762.0,0.27457367]
[1731257382711,0.00013006,79763.0,79762.0,0.27457367]
[1731257383008,0.0385991,79763.0,79762.0,0.27457367]
[1731257383212,0.03082027,79763.0,79762.0,0.27457367]
[1731257383707,0.03082027,79763.0,79762.0,0.33720667]
[1731257384109,0.00013006,79763.0,79762.0,0.33720667]
[1731257385005,0.03082015,79763.0,79762.0,0.33720667]
[1731257386611,0.00013006,79763.0,79762.0,0.33720667]
[1731257387008,0.00013006,79763.0,79762.0,0.062633]
[1731257391716,0.00013006,79763.0,79756.0,0.062637]
[1731257391907,0.062634,79761.0,79756.0,0.062637]
[1731257392326,0.062635,79760.0,79756.0,0.062637]
[1731257393210,0.062635,79760.0,79749.0,0.08439731]
[1731257393513,0.062633,79762.0,79757.0,0.062636]
[1731257393820,0.03069447,79761.0,79757.0,0.062636]
[1731257394018,0.062634,79761.0,79757.0,0.062636]
[1731257394216,0.06337733,79763.0,79757.0,0.062636]
[1731257394615,0.062636,79759.0,79757.0,0.062636]
[1731257395010,0.062636,79759.0,79752.0,0.06264]
[1731257395011,0.062638,79756.0,79752.0,0.06264]
[1731257395218,0.08439731,79759.0,79752.0,0.06264]
[1731257395219,0.095538,79755.0,79752.0,0.06264]
[1731257395532,0.0657,79754.0,79752.0,0.06264]
[1731257395818,0.06264,79753.0,79752.0,0.06264]
[1731257396014,0.17336,79753.0,79752.0,0.06264]
[1731257396207,0.11072,79753.0,79751.0,0.062641]
[1731257396414,0.11072,79753.0,79750.0,0.33719859]
[1731257397317,0.03069618,79752.0,79750.0,0.33719859]
[1731257397515,0.062641,79752.0,79751.0,0.062641]
[1731257397711,0.11072,79753.0,79751.0,0.062641]
[1731257398220,0.03069623,79752.0,79751.0,0.062641]
[1731257400215,0.03069623,79752.0,79751.0,0.14703831]
[1731257400622,0.11072,79753.0,79751.0,0.14703831]
[1731257400919,0.11072,79753.0,79752.0,0.062641]
[1731257401311,0.11072,79753.0,79750.0,0.33719859]
[1731257401509,0.17336,79753.0,79750.0,0.33719859]
[1731257401711,0.06917189,79752.0,79750.0,0.33719859]
[1731257402013,0.06917189,79751.0,79750.0,0.33719859]
[1731257402209,0.06917189,79752.0,79750.0,0.33719859]
[1731257403116,0.17336,79753.0,79750.0,0.33719859]
[1731257403117,0.03069624,79751.0,79750.0,0.33719859]
[1731257403621,0.03069652,79752.0,79750.0,0.33719859]
[1731257403921,0.03069652,79751.0,79750.0,0.39984059]
[1731257405320,0.11072,79753.0,79751.0,0.062641]
[1731257405617,0.0306959,79752.0,79751.0,0.062641]
[1731257408821,0.0306959,79752.0,79749.0,0.08439731]
[1731257408822,0.11072,79753.0,79752.0,0.062641]
[1731257410018,0.424115,79759.0,79749.0,0.08439731]
[1731257410323,0.173036,79758.0,79753.0,0.062639]
[1731257410522,0.173036,79758.0,79750.0,0.062642]
[1731257410727,0.062636,79758.0,79757.0,0.062637]
[1731257410939,0.1104,79758.0,79757.0,0.062637]
[1731257411120,0.06917021,79758.0,79757.0,0.062637]
[1731257411830,0.06916642,79758.0,79753.0,0.3608]
[1731257412024,0.03069362,79757.0,79754.0,0.062639]
[1731257412220,0.03069362,79756.0,79755.0,0.062638]
[1731257412626,0.03069362,79756.0,79753.0,0.3371958]
[1731257412826,0.03069362,79755.0,79753.0,0.3371958]
[1731257413027,0.1441,79762.0,79759.0,0.062634]
[1731257413223,0.06916586,79761.0,79759.0,0.062634]
[1731257413529,0.13179986,79761.0,79759.0,0.062634]
[1731257413728,0.06916586,79760.0,79759.0,0.062634]
[1731257415533,0.06916685,79760.0,79759.0,0.062634]
[1731257415722,0.17956685,79760.0,79759.0,0.062634]
[1731257416127,0.062638,79755.0,79748.0,0.062643]
[1731257416328,0.030694,79754.0,79738.0,0.08439731]
[1731257416530,0.08439731,79753.0,79744.0,0.06452713]
[1731257416741,0.3608,79749.0,79744.0,0.06452713]
[1731257416936,0.32023165,79748.0,79744.0,0.06452713]
[1731257417140,0.11412765,79747.0,79744.0,0.06452713]
[1731257417335,0.11412765,79747.0,79745.0,0.062646]
[1731257417533,0.06916942,79746.0,79745.0,0.062646]
[1731257418444,0.03847542,79746.0,79745.0,0.062646]
[1731257418638,0.15369679,79746.0,79739.0,0.06265]
[1731257418832,0.11412765,79745.0,79739.0,0.06265]
[1731257419028,0.00013006,79746.0,79739.0,0.06265]
[1731257419029,0.06916942,79744.0,79739.0,0.06265]
[1731257419242,0.06916942,79743.0,79739.0,0.06265]
[1731257419438,0.01900954,79742.0,79739.0,0.06265]
[1731257419636,0.062646,79745.0,79739.0,0.06265]
[1731257420049,0.062647,79744.0,79736.0,0.41096554]
[1731257420347,0.062648,79743.0,79736.0,0.41096554]
[1731257420538,0.00013006,79746.0,79736.0,0.41096554]
[1731257420845,0.00013006,79746.0,79738.0,0.062651]
[1731257421236,0.062646,79745.0,79738.0,0.04940964]
[1731257421442,0.062647,79744.0,79738.0,0.04940964]
[1731257421640,0.1104,79743.0,79738.0,0.04940964]
[1731257422039,0.15535823,79743.0,79738.0,0.04940964]
[1731257422236,0.04495823,79742.0,79738.0,0.04940964]
[1731257422438,0.15535823,79743.0,79738.0,0.04940964]
[1731257422638,0.21800623,79743.0,79738.0,0.04940964]
[1731257422840,0.04495823,79742.0,79738.0,0.04940964]
[1731257423841,0.173048,79743.0,79736.0,0.41096554]
[1731257423842,0.173048,79743.0,79739.0,0.06265]
[1731257424045,0.173048,79743.0,79739.0,0.06245]
[1731257424347,0.173048,79743.0,79736.0,0.41096554]
[1731257424539,0.062649,79742.0,79736.0,0.41096554]
[1731257425536,0.3608,79740.0,79736.0,0.05016554]
[1731257425751,0.42345,79740.0,79736.0,0.05016554]
[1731257426249,0.03848368,79739.0,79736.0,0.01314426]
[1731257426549,0.03848368,79738.0,79736.0,0.01314426]
[1731257427450,0.06918575,79738.0,79736.0,0.01314426]
[1731257429349,0.03070207,79738.0,79735.0,0.0594819]
[1731257429556,0.03070207,79737.0,79736.0,0.05016554]
[1731257430551,0.062651,79739.0,79736.0,0.05016554]
[1731257430958,0.062652,79738.0,79736.0,0.05016554]
[1731257431454,0.03070149,79737.0,79736.0,0.05016554]
[1731257431657,0.062652,79738.0,79736.0,0.05016554]
[1731257432258,0.3608,79740.0,79736.0,0.11281854]
[1731257432453,0.03070149,79739.0,79737.0,0.14704931]
[1731257432660,0.3608,79740.0,79737.0,0.08439731]
[1731257432851,0.3608,79740.0,79739.0,0.062651]
[1731257433051,0.3915013,79740.0,79739.0,0.062651]
[1731257433557,0.0307013,79740.0,79739.0,0.062651]
[1731257433752,0.1104,79741.0,79739.0,0.062651]
[1731257438666,0.06917967,79740.0,79739.0,0.062651]
[1731257440361,0.17937967,79740.0,79739.0,0.062651]
[1731257440562,0.17937967,79740.0,79739.0,0.098051]
[1731257440976,0.17937782,79740.0,79739.0,0.098051]
[1731257441862,0.17937782,79740.0,79739.0,0.14821465]
[1731257442068,0.06917782,79740.0,79739.0,0.14821465]
[1731257444663,0.06917782,79740.0,79739.0,0.05016365]
[1731257444864,0.13182782,79740.0,79739.0,0.05016365]
[1731257445470,0.42997782,79740.0,79736.0,0.05016554]
[1731257445672,0.1141422,79739.0,79738.0,0.062651]
[1731257445865,0.06918262,79739.0,79738.0,0.062651]
[1731257446972,0.030701,79739.0,79736.0,0.05016554]
[1731257447168,0.062649,79741.0,79739.0,0.01946265]
[1731257447471,0.12404162,79741.0,79739.0,0.01946265]
[1731257447973,0.062649,79741.0,79739.0,0.01946265]
[1731257448674,0.12451012,79741.0,79739.0,0.01946265]
[1731257448875,0.062649,79741.0,79739.0,0.01946265]
[1731257450178,0.00013006,79746.0,79739.0,0.01946265]
[1731257450676,0.10112751,79745.0,79739.0,0.01946265]
[1731257450876,0.03848166,79744.0,79739.0,0.01946265]
[1731257451069,0.062646,79745.0,79739.0,0.01946265]
[1731257451070,0.03848166,79743.0,79739.0,0.01946265]
[1731257451270,0.062646,79745.0,79739.0,0.01946265]
[1731257451477,0.03848156,79744.0,79739.0,0.01946265]
[1731257451679,0.03848156,79743.0,79739.0,0.01946265]
[1731257451980,0.03848194,79742.0,79739.0,0.01946265]
[1731257452164,0.062646,79745.0,79739.0,0.01946265]
[1731257452368,0.03848166,79744.0,79739.0,0.01946265]
[1731257452565,0.03848166,79743.0,79739.0,0.01946265]
[1731257452767,0.03848166,79742.0,79739.0,0.0696263]
[1731257452982,0.14868177,79741.0,79739.0,0.0696263]
[1731257453181,0.1102,79741.0,79739.0,0.1322763]
[1731257453477,0.03848197,79740.0,79739.0,0.1322763]
[1731257453974,0.03848197,79740.0,79739.0,0.09825549]
[1731257455271,0.06918351,79740.0,79739.0,0.09825549]
[1731257455678,0.06918384,79740.0,79739.0,0.09825549]
[1731257456381,0.06918384,79740.0,79739.0,0.03560549]
[1731257456580,0.42998384,79740.0,79739.0,0.03560549]
[1731257456875,0.47494963,79740.0,79739.0,0.03560549]
[1731257458382,0.062652,79737.0,79736.0,0.04497436]
[1731257458878,0.13183584,79737.0,79736.0,0.04497436]
[1731257460885,0.24203584,79737.0,79736.0,0.04497436]
[1731257461076,0.28700163,79737.0,79736.0,0.04497436]
[1731257461877,0.24203584,79737.0,79736.0,0.04497436]
[1731257462485,0.20355354,79737.0,79736.0,0.04497436]
[1731257462887,0.26749958,79737.0,79736.0,0.04497436]
[1731257463079,0.62829958,79737.0,79736.0,0.04497436]
[1731257464984,0.66678793,79737.0,79736.0,0.04497436]
[1731257465681,0.66678828,79737.0,79736.0,0.04497436]
[1731257465892,0.66678828,79737.0,79736.0,0.03836299]
[1731257468183,0.62829958,79737.0,79736.0,0.03836299]
[1731257468883,0.71175895,79737.0,79736.0,0.03836299]
[1731257469083,0.66678686,79737.0,79736.0,0.03836299]
[1731257469380,0.60308082,79737.0,79736.0,0.1227603]
[1731257469585,0.60308082,79737.0,79736.0,0.03836299]
[1731257470581,0.54042882,79737.0,79736.0,0.03836299]
[1731257471082,0.42998882,79737.0,79736.0,0.03836299]
[1731257471284,0.54042882,79737.0,79736.0,0.03836299]
[1731257471883,0.42998882,79737.0,79736.0,0.03836299]
[1731257472082,0.54042882,79737.0,79736.0,0.03836299]
[1731257473886,0.42998882,79737.0,79736.0,0.03836299]
[1731257474181,0.54042882,79737.0,79736.0,0.03836299]
[1731257474887,0.58539733,79737.0,79736.0,0.03836299]
[1731257475484,0.54042882,79737.0,79736.0,0.03836299]
[1731257476075,0.60308082,79737.0,79736.0,0.03836299]
[1731257477084,0.56459354,79737.0,79736.0,0.03836299]
[1731257478690,0.56459548,79737.0,79736.0,0.03836299]
[1731257480185,0.60308068,79737.0,79736.0,0.03836299]
[1731257481186,0.42998886,79737.0,79736.0,0.1227603]
[1731257481393,0.06918886,79737.0,79736.0,0.1227603]
[1731257481691,9.901e-05,79739.0,79736.0,0.4990003]
[1731257481883,0.3608,79755.0,79737.0,0.37624]
[1731257482084,0.3608,79755.0,79754.0,0.08439731]
[1731257482797,0.40575964,79755.0,79754.0,0.05548068]
[1731257483090,0.3608,79755.0,79754.0,0.05548068]
[1731257483892,0.40575967,79755.0,79754.0,0.05548068]
[1731257484393,0.3608,79755.0,79754.0,0.05548068]
[1731257485003,0.3608,79755.0,79754.0,0.08453141]
[1731257486600,0.11044,79761.0,79754.0,0.08453141]
[1731257486799,0.00188085,79771.0,79766.0,0.06263]
[1731257486988,0.3992705,79767.0,79766.0,0.14716141]
[1731257487386,0.3608,79767.0,79766.0,0.14716141]
[1731257487596,0.3992687,79767.0,79766.0,0.14716141]
[1731257488092,0.3992687,79767.0,79766.0,0.08453141]
[1731257488093,0.39926873,79767.0,79766.0,0.08453141]
[1731257488291,0.39926873,79767.0,79760.0,0.18076541]
[1731257488292,0.46189773,79767.0,79760.0,0.18076541]
[1731257488490,0.03846873,79766.0,79760.0,0.18076541]
[1731257489498,0.03846873,79766.0,79761.0,0.062633]
[1731257489702,0.03069237,79765.0,79761.0,0.062633]
[1731257489895,0.03069237,79765.0,79760.0,0.17990881]
[1731257489896,0.03069237,79764.0,79763.0,0.062632]
[1731257491993,0.06916218,79764.0,79763.0,0.062632]
[1731257492193,0.06916218,79764.0,79757.0,0.062637]
[1731257492402,0.06916218,79763.0,79752.0,0.08453141]
[1731257492618,0.06916218,79763.0,79758.0,0.062635]
[1731257492792,0.03846981,79763.0,79758.0,0.062635]
[1731257492998,0.062631,79764.0,79758.0,0.062635]
[1731257492999,0.17956437,79762.0,79758.0,0.062635]
[1731257493306,0.11411604,79761.0,79758.0,0.062635]
[1731257493605,0.06916437,79760.0,79758.0,0.062635]
[1731257493792,0.04495167,79761.0,79760.0,0.062634]
[1731257493998,0.06916412,79761.0,79760.0,0.062634]
[1731257494501,0.06916412,79761.0,79760.0,0.04165407]
[1731257495902,0.11411579,79761.0,79760.0,0.04165407]
[1731257496401,0.06916412,79761.0,79760.0,0.04165407]
[1731257497705,0.06916229,79761.0,79760.0,0.04165407]
[1731257497901,0.06916286,79761.0,79760.0,0.04165407]
[1731257499008,0.06916286,79761.0,79759.0,0.08453141]
[1731257499009,0.1104,79762.0,79761.0,0.062633]
[1731257501015,0.14109165,79762.0,79761.0,0.12531792]
[1731257501207,0.14109165,79762.0,79761.0,0.062633]
[1731257501501,0.1104,79762.0,79761.0,0.062633]
[1731257501898,0.0361,79766.0,79765.0,0.06263]
[1731257502101,0.0361,79766.0,79765.0,0.14716141]
[1731257502102,0.03069058,79766.0,79765.0,0.14716141]
[1731257502303,0.0366,79772.0,79765.0,0.08453141]
[1731257502503,0.0335,79776.0,79775.0,0.062622]
[1731257502721,0.10908,79776.0,79775.0,0.062622]
[1731257503005,0.17823313,79776.0,79775.0,0.062622]
[1731257503204,0.13976791,79776.0,79775.0,0.062622]
[1731257503409,0.03068791,79776.0,79775.0,0.14715341]
[1731257503710,0.00188075,79783.0,79775.0,0.14715341]
[1731257503711,0.11096075,79783.0,79782.0,0.062617]
[1731257503909,0.14164434,79783.0,79782.0,0.14714841]
[1731257504104,0.03256434,79783.0,79782.0,0.14714841]
[1731257504308,0.00188075,79783.0,79782.0,0.14714841]
[1731257504707,0.10908,79790.0,79787.0,0.062612]
[1731257505015,0.03068299,79788.0,79787.0,0.062612]
[1731257505204,0.03068299,79788.0,79787.0,0.14714341]
[1731257506314,0.10908,79790.0,79787.0,0.14714341]
[1731257506509,0.03068271,79788.0,79787.0,0.14714341]
[1731257507709,0.03068237,79788.0,79787.0,0.14714341]
[1731257508101,0.00064,79794.0,79787.0,0.44533141]
[1731257508306,0.03068016,79793.0,79792.0,0.062608]
[1731257508515,0.10908,79795.0,79787.0,0.3608]
[1731257508709,0.10908,79795.0,79793.0,0.062608]
[1731257509102,0.10908,79795.0,79794.0,0.08453141]
[1731257509308,0.13975969,79795.0,79794.0,0.08433141]
[1731257509509,0.10908,79795.0,79794.0,0.08433141]
[1731257510523,0.13976061,79795.0,79794.0,0.08433141]
[1731257510810,0.10908,79795.0,79794.0,0.08433141]
[1731257511517,0.171687,79795.0,79787.0,0.14714441]
[1731257511812,0.03068223,79794.0,79787.0,0.14714441]
[1731257512000,0.0306824,79793.0,79787.0,0.14714441]
[1731257512201,0.171687,79795.0,79787.0,0.14714441]
[1731257512410,0.03068211,79794.0,79787.0,0.14714441]
[1731257512615,0.171687,79795.0,79787.0,0.14714441]
[1731257513609,0.062608,79794.0,79787.0,0.14714441]
[1731257513911,0.13174764,79793.0,79787.0,0.14714441]
[1731257514107,0.06913964,79792.0,79787.0,0.14714441]
[1731257514415,0.06913964,79791.0,79787.0,0.14714441]
[1731257514712,0.06913964,79790.0,79787.0,0.14714441]
[1731257515018,0.06913964,79789.0,79787.0,0.14714441]
[1731257515314,0.06913964,79788.0,79787.0,0.14714441]
[1731257515806,0.06913964,79788.0,79787.0,0.14704441]
[1731257519510,0.06913964,79788.0,79787.0,0.08453141]
[1731257520616,0.42993964,79788.0,79777.0,0.3608]